fUST/lending_fUST_20250928
["ID","MTS","AMOUNT","RATE_DAILY","PERIOD"]
[388049707,1758991863329,-4074.68,0.00035616,9]
[388049708,1758991863339,-480.0,0.00035616,9]
[388049709,1758991863349,-5355.96,0.00035616,9]
[388049710,1758991863358,-597.08658096,0.00035616,9]
[388049711,1758991863367,-480.0,0.00035616,9]
[388049712,1758991863378,-609.04,0.00035616,9]
[388049713,1758991863388,-635.39,0.00035616,9]
[388049714,1758991863397,-600.0,0.00035616,9]
[388049715,1758991863407,-1083.43,0.00035616,9]
[388049716,1758991863416,-480.0,0.00035616,9]
[388049717,1758991863427,-248.44200045,0.00035616,9]
[388049718,1758991863437,-480.0,0.00035616,9]
[388049719,1758991863446,-6135.71,0.00035616,9]
[388049720,1758991863455,-582.25,0.00035616,9]
[388049721,1758991863466,-480.0,0.00035616,9]
[388049722,1758991863476,-480.0,0.00035616,9]
[388049723,1758991863486,-480.0,0.00035616,9]
[388049724,1758991863495,-480.0,0.00035616,9]
[388049725,1758991863504,-608.64,0.00035616,9]
[388049726,1758991863514,-1454.61,0.00035616,9]
[388049727,1758991863523,-509.6513986,0.00035616,9]
[388049728,1758991863532,-558.3,0.00035616,9]
[388049729,1758991863542,-795.07,0.00035616,9]
[388049730,1758991863551,-480.0,0.00035616,9]
[388049731,1758991863561,-480.0,0.00035616,9]
[388049732,1758991863685,-480.0,0.00035616,9]
[388049733,1758991863695,-480.0,0.00035616,9]
[388049734,1758991863704,-949.65,0.00035616,9]
[388049735,1758991863713,-3527.91,0.00035616,9]
[388049736,1758991863722,-480.0,0.00035616,9]
[388049737,1758991863732,-480.0,0.00035616,9]
[388049738,1758991863741,-879.24,0.00035616,9]
[388049739,1758991863750,-480.0,0.00035616,9]
[388049740,1758991863759,-227.22773625,0.00035616,9]
[388049741,1758991863769,-480.0,0.00035616,9]
[388049742,1758991863778,-480.0,0.00035616,9]
[388049743,1758991863787,-480.0,0.00035616,9]
[388049744,1758991863796,-480.0,0.00035616,9]
[388049745,1758991863806,-480.0,0.00035616,9]
[388049746,1758991863815,-634.25,0.00035616,9]
[388049747,1758991863824,-480.0,0.00035616,9]
[388049748,1758991863834,-873.63,0.00035616,9]
[388049749,1758991863843,-2393.16,0.00035616,9]
[388049750,1758991863852,-480.0,0.00035616,9]
[388049751,1758991863861,-480.0,0.00035616,9]
[388049752,1758991863870,-685.06,0.00035616,9]
[388049753,1758991863880,-480.0,0.00035616,9]
[388049754,1758991863889,-480.0,0.00035616,9]
[388049755,1758991863898,-12932.91,0.00035616,9]
[388049756,1758991863908,-3077.1,0.00035616,9]
[388049757,1758991863918,-480.0,0.00035616,9]
[388049758,1758991863927,-2259.84,0.00035616,9]
[388049759,1758991863937,-479.65049509,0.00035616,9]
[388049760,1758991863947,-480.0,0.00035616,9]
[388049761,1758991863956,-487.4,0.00035616,9]
[388049762,1758991863965,-480.0,0.00035616,9]
[388049763,1758991863975,-480.0,0.00035616,9]
[388049764,1758991863984,-1471.93,0.00035616,9]
[388049765,1758991863993,-480.0,0.00035616,9]
[388049766,1758991864003,-480.0,0.00035616,9]
[388049767,1758991864012,-3351.15,0.00035616,9]
[388049768,1758991864022,-480.0,0.00035616,9]
[388049769,1758991864031,-480.0,0.00035616,9]
[388049770,1758991864041,-480.0,0.00035616,9]
[388049771,1758991864051,-480.0,0.00035616,9]
[388049772,1758991864060,-480.0,0.00035616,9]
[388049773,1758991864069,-480.0,0.00035616,9]
[388049774,1758991864079,-482.59243073,0.00035616,9]
[388049775,1758991864089,-1084.51,0.00035616,9]
[388049776,1758991864098,-480.0,0.00035616,9]
[388049777,1758991864107,-480.0,0.00035616,9]
[388049778,1758991864117,-3402.38,0.00035616,9]
[388049779,1758991864126,-480.0,0.00035616,9]
[388049780,1758991864135,-480.0,0.00035616,9]
[388049781,1758991864145,-680.72,0.00035616,9]
[388049782,1758991864154,-513.3977491,0.00035616,9]
[388049783,1758991864164,-1130.77,0.00035616,9]
[388049784,1758991864173,-3549.2,0.00035616,9]
[388049785,1758991864183,-480.0,0.00035616,9]
[388049786,1758991864192,-480.0,0.00035616,9]
[388049787,1758991864201,-1031.55,0.00035616,9]
[388049788,1758991864211,-480.0,0.00035616,9]
[388049789,1758991864220,-487.11,0.00035616,9]
[388049790,1758991864229,-480.0,0.00035616,9]
[388049791,1758991864240,-480.0,0.00035616,9]
[388049792,1758991864250,-480.0,0.00035616,9]
[388049793,1758991864259,-565.16,0.00035616,9]
[388049794,1758991864268,-480.0,0.00035616,9]
[388049795,1758991864278,-992.19,0.00035616,9]
[388049796,1758991864287,-480.0,0.00035616,9]
[388049797,1758991864297,-480.0,0.00035616,9]
[388049798,1758991864306,-480.0,0.00035616,9]
[388049799,1758991864315,-12398.73,0.00035616,9]
[388049800,1758991864324,-480.0,0.00035616,9]
[388049801,1758991864334,-480.0,0.00035616,9]
[388049802,1758991864343,-25223.41,0.00035616,9]
[388049803,1758991864352,-480.0,0.00035616,9]
[388049804,1758991864362,-855.18,0.00035616,9]
[388049805,1758991864371,-5708.88,0.00035616,9]
[388049806,1758991864380,-6059.27,0.00035616,9]
[388049807,1758991864390,-480.0,0.00035616,9]
[388049808,1758991864399,-480.0,0.00035616,9]
[388049809,1758991864409,-544.52,0.00035616,9]
[388049810,1758991864419,-5213.48,0.00035616,9]
[388049811,1758991864428,-480.0,0.00035616,9]
[388049812,1758991864437,-480.0,0.00035616,9]
[388049813,1758991864447,-2007.63,0.00035616,9]
[388049814,1758991864456,-674.25,0.00035616,9]
[388049815,1758991864465,-5926.86,0.00035616,9]
[388049816,1758991864475,-975.46,0.00035616,9]
[388049817,1758991864484,-1296.28,0.00035616,9]
[388049818,1758991864493,-568.79,0.00035616,9]
[388049819,1758991864502,-480.0,0.00035616,9]
[388049820,1758991864512,-1402.39,0.00035616,9]
[388049821,1758991864521,-1792.57,0.00035616,9]
[388049822,1758991864530,-480.0,0.00035616,9]
[388049823,1758991864540,-480.0,0.00035616,9]
[388049824,1758991864550,-480.0,0.00035616,9]
[388049825,1758991864559,-764.52,0.00035616,9]
[388049826,1758991864571,-2623.85,0.00035616,9]
[388049827,1758991864581,-480.0,0.00035616,9]
[388049828,1758991864591,-480.0,0.00035616,9]
[388049829,1758991864601,-480.0,0.00035616,9]
[388049830,1758991864611,-480.0,0.00035616,9]
[388049831,1758991864621,-480.0,0.00035616,9]
[388049832,1758991864630,-860.93,0.00035616,9]
[388049833,1758991864640,-480.0,0.00035616,9]
[388049834,1758991864649,-480.0,0.00035616,9]
[388049835,1758991864659,-480.0,0.00035616,9]
[388049836,1758991864669,-1252.07,0.00035616,9]
[388049837,1758991864678,-480.0,0.00035616,9]
[388049838,1758991864687,-480.0,0.00035616,9]
[388049839,1758991864697,-487.84742232,0.00035616,9]
[388049840,1758991864706,-1881.13,0.00035616,9]
[388049841,1758991864716,-480.0,0.00035616,9]
[388049842,1758991864725,-6080.52,0.00035616,9]
[388049843,1758991864734,-480.0,0.00035616,9]
[388049844,1758991864744,-480.0,0.00035616,9]
[388049845,1758991864753,-480.0,0.00035616,9]
[388049846,1758991864763,-480.0,0.00035616,9]
[388049847,1758991864772,-897.36,0.00035616,9]
[388049848,1758991864782,-480.0,0.00035616,9]
[388049849,1758991864791,-679.0,0.00035616,9]
[388049850,1758991864810,-1014.68,0.00035616,9]
[388049851,1758991864822,-4132.34,0.00035616,9]
[388049852,1758991864832,-1524.58,0.00035616,9]
[388049853,1758991864842,-1524.58,0.00035616,9]
[388049854,1758991864851,-480.0,0.00035616,9]
[388049855,1758991864861,-1524.58,0.00035616,9]
[388049856,1758991864871,-1524.58,0.00035616,9]
[388049857,1758991864882,-1524.58,0.00035616,9]
[388049858,1758991864895,-1524.58,0.00035616,9]
[388049859,1758991864905,-1524.58,0.00035616,9]
[388049860,1758991864915,-490.54531804,0.00035616,9]
[388049861,1758991864926,-1524.58,0.00035616,9]
[388049862,1758991864935,-1524.58,0.00035616,9]
[388049863,1758991864945,-1524.58,0.00035616,9]
[388049864,1758991864956,-2335.33,0.00035616,9]
[388049865,1758991864966,-1524.58,0.00035616,9]
[388049866,1758991864976,-1524.58,0.00035616,9]
[388049867,1758991864985,-480.0,0.00035616,9]
[388049868,1758991864996,-567.27396628,0.00035616,9]
[388049869,1758991865006,-480.0,0.00035616,9]
[388049870,1758991865017,-1524.58,0.00035616,9]
[388049871,1758991865027,-480.0,0.00035616,9]
[388049872,1758991865037,-1524.58,0.00035616,9]
[388049873,1758991865047,-1524.58,0.00035616,9]
[388049874,1758991865057,-1524.58,0.00035616,9]
[388049875,1758991865067,-1524.58,0.00035616,9]
[388049876,1758991865078,-1524.58,0.00035616,9]
[388049877,1758991865088,-1524.58,0.00035616,9]
[388049878,1758991865097,-1119.04,0.00035616,9]
[388049879,1758991865107,-1524.58,0.00035616,9]
[388049880,1758991865117,-480.0,0.00035616,9]
[388049881,1758991865126,-1524.58,0.00035616,9]
[388049882,1758991865136,-480.0,0.00035616,9]
[388049883,1758991865147,-480.0,0.00035616,9]
[388049884,1758991865157,-480.0,0.00035616,9]
[388049885,1758991865166,-1524.58,0.00035616,9]
[388049886,1758991865176,-1524.58,0.00035616,9]
[388049887,1758991865186,-1524.75624331,0.00035616,9]
[388049888,1758991865195,-480.0,0.00035616,9]
[388049889,1758991865204,-3057.59,0.00035616,9]
[388049890,1758991865214,-480.0,0.00035616,9]
[388049891,1758991865224,-1124.52,0.00035616,9]
[388049892,1758991865233,-471.35589934,0.00035616,9]
[388049893,1758991865243,-4315.69,0.00035616,9]
[388049894,1758991865253,-1118.87,0.00035616,9]
[388049895,1758991865262,-1739.09,0.00035616,9]
[388049896,1758991865271,-480.35930891,0.00035616,9]
[388049897,1758991865281,-480.0,0.00035616,9]
[388049898,1758991865291,-964.47,0.00035616,9]
[388049899,1758991865303,-554.5,0.00035616,9]
[388049900,1758991865312,-956.42,0.00035616,9]
[388049901,1758991865321,-480.0,0.00035616,9]
[388049902,1758991865331,-1033.1,0.00035616,9]
[388049903,1758991865341,-1011.0,0.0003565,5]
[388049904,1758991865350,-1504.3947377,0.0003565,5]
[388049905,1758991865360,-3500.0,0.00035665,5]
[388049906,1758991865370,-500.0,0.00035673,5]
[388049907,1758991865380,-500.0,0.00035673,5]
[388049908,1758991865390,-168.15956814,0.00035673,5]
[388049909,1758991865400,-500.0,0.00035673,5]
[388049910,1758991865409,-500.0,0.00035673,5]
[388049911,1758991865420,-585.16274702,0.00035673,5]
[388049912,1758991865432,-418.95751655,0.00035673,5]
[388049913,1758991865441,-500.0,0.00035673,5]
[388049914,1758991865452,-340.96424801,0.00035673,5]
[388049915,1758991865462,-500.0,0.00035673,5]
[388049916,1758991865472,-500.0,0.00035673,2]
[388049917,1758991865482,-500.0,0.00035673,5]
[388049918,1758991865493,-500.0,0.00035673,5]
[388049919,1758991865656,-500.0,0.00035673,5]
[388049920,1758991865666,-575.25942439,0.00035673,5]
[388049921,1758991865675,-500.0,0.00035673,5]
[388049922,1758991865684,-500.0,0.00035673,5]
[388049923,1758991865694,-500.0,0.00035673,5]
[388049924,1758991865704,-500.0,0.00035673,5]
[388049925,1758991865714,-500.0,0.00035673,5]
[388049926,1758991865724,-503.64207553,0.00035673,5]
[388049927,1758991865733,-500.0,0.00035673,5]
[388049928,1758991865742,-212.02780329,0.00035673,5]
[388049929,1758991865753,-529.50832457,0.00035673,5]
[388049930,1758991865762,-500.0,0.00035673,5]
[388049931,1758991865772,-500.0,0.00035673,5]
[388049932,1758991865781,-500.0,0.00035673,5]
[388049933,1758991865791,-500.0,0.00035673,5]
[388049934,1758991865800,-500.0,0.00035673,5]
[388049935,1758991865810,-500.0,0.00035673,5]
[388049936,1758991865819,-500.0,0.00035673,5]
[388049937,1758991865828,-500.0,0.00035673,5]
[388049938,1758991865838,-500.0,0.00035673,5]
[388049939,1758991865847,-500.0,0.00035673,5]
[388049940,1758991865856,-500.0,0.00035673,5]
[388049941,1758991865866,-203.19238064,0.00035673,5]
[388049942,1758991865876,-155.74553295,0.00035673,5]
[388049943,1758991865886,-500.0,0.00035673,5]
[388049944,1758991865896,-163.65419057,0.00035673,5]
[388049945,1758991865906,-150.0,0.00035673,5]
[388049946,1758991865916,-500.0,0.00035673,5]
[388049947,1758991865926,-400.0,0.00035673,5]
[388049948,1758991865935,-500.0,0.00035673,5]
[388049949,1758991865944,-500.0,0.00035673,5]
[388049950,1758991865953,-500.0,0.00035673,5]
[388049951,1758991865964,-500.0,0.00035673,5]
[388049952,1758991865974,-190.0,0.00035741,30]
[388049953,1758991865984,-988.55360538,0.00035775,5]
[388049954,1758991865994,-100000.0,0.000358,20]
[388049955,1758991866006,-1009.026192,0.000358,10]
[388049956,1758991866017,-501.24583437,0.00035817,30]
[388049957,1758991866027,-480.0,0.0003589,9]
[388049958,1758991866037,-480.0,0.0003589,9]
[388049959,1758991866046,-480.0,0.0003589,9]
[388049960,1758991866056,-489.96527782,0.0003589,9]
[388049961,1758991866066,-480.0,0.0003589,9]
[388049962,1758991866075,-480.0,0.0003589,9]
[388049963,1758991866085,-480.0,0.0003589,9]
[388049964,1758991866094,-480.0,0.0003589,9]
[388049965,1758991866103,-480.0,0.0003589,9]
[388049966,1758991866112,-480.0,0.0003589,9]
[388049967,1758991866122,-480.0,0.0003589,9]
[388049968,1758991866132,-705.8,0.0003589,9]
[388049969,1758991866141,-480.0,0.0003589,9]
[388049970,1758991866151,-480.0,0.0003589,9]
[388049971,1758991866160,-480.0,0.0003589,9]
[388049972,1758991866169,-480.0,0.0003589,9]
[388049973,1758991866179,-480.0,0.0003589,9]
[388049974,1758991866188,-480.0,0.0003589,9]
[388049975,1758991866197,-1235.07,0.0003589,9]
[388049976,1758991866207,-480.0,0.0003589,9]
[388049977,1758991866215,-480.0,0.0003589,9]
[388049978,1758991866226,-480.0,0.0003589,9]
[388049979,1758991866235,-480.0,0.0003589,9]
[388049980,1758991866245,-482.65873305,0.0003589,9]
[388049981,1758991866254,-480.0,0.0003589,9]
[388049982,1758991866263,-480.0,0.0003589,9]
[388049983,1758991866272,-480.0,0.0003589,9]
[388049984,1758991866281,-480.0,0.0003589,9]
[388049985,1758991866291,-480.0,0.0003589,9]
[388049986,1758991866305,-513.98459416,0.0003589,9]
[388049987,1758991866314,-480.0,0.0003589,9]
[388049988,1758991866323,-480.0,0.0003589,9]
[388049989,1758991866333,-480.0,0.0003589,9]
[388049990,1758991866343,-480.0,0.0003589,9]
[388049991,1758991866352,-481.94923442,0.0003589,9]
[388049992,1758991866361,-480.0,0.0003589,9]
[388049993,1758991866371,-480.0,0.0003589,9]
[388049994,1758991866381,-480.0,0.0003589,9]
[388049995,1758991866391,-315.22645588,0.0003589,9]
[388049996,1758991866401,-807.11,0.0003589,9]
[388049997,1758991866411,-480.0,0.0003589,9]
[388049998,1758991866421,-480.0,0.0003589,9]
[388049999,1758991866431,-480.0,0.0003589,9]
[388050000,1758991866442,-480.0,0.0003589,9]
[388050001,1758991866452,-480.0,0.0003589,9]
[388050002,1758991866462,-482.38,0.0003589,9]
[388050003,1758991866471,-480.0,0.0003589,9]
[388050004,1758991866480,-480.0,0.0003589,9]
[388050005,1758991866489,-480.0,0.0003589,9]
[388050006,1758991866498,-480.0,0.0003589,9]
[388050007,1758991866508,-480.0,0.0003589,9]
[388050008,1758991866517,-480.0,0.0003589,9]
[388050009,1758991866527,-480.0,0.0003589,9]
[388050010,1758991866536,-480.0,0.0003589,9]
[388050011,1758991866545,-480.0,0.0003589,9]
[388050012,1758991866554,-480.0,0.0003589,9]
[388050013,1758991866564,-480.0,0.0003589,9]
[388050014,1758991866577,-480.0,0.0003589,9]
[388050015,1758991866585,-480.0,0.0003589,9]
[388050016,1758991866594,-787.1,0.0003589,9]
[388050017,1758991866603,-480.0,0.0003589,9]
[388050018,1758991866611,-480.0,0.0003589,9]
[388050019,1758991866619,-480.0,0.0003589,9]
[388050020,1758991866628,-480.0,0.0003589,9]
[388050021,1758991866636,-326.72413213,0.0003589,9]
[388050022,1758991866646,-480.0,0.0003589,9]
[388050023,1758991866655,-480.0,0.0003589,9]
[388050024,1758991866665,-480.0,0.0003589,9]
[388050025,1758991866674,-480.0,0.0003589,9]
[388050026,1758991866683,-480.0,0.0003589,9]
[388050027,1758991866693,-376.84925174,0.0003589,9]
[388050028,1758991866703,-480.0,0.0003589,9]
[388050029,1758991866712,-480.0,0.0003589,9]
[388050030,1758991866723,-480.0,0.0003589,9]
[388050031,1758991866732,-480.0,0.0003589,9]
[388050032,1758991866745,-480.0,0.0003589,9]
[388050033,1758991866754,-480.0,0.0003589,9]
[388050034,1758991866763,-480.0,0.0003589,9]
[388050035,1758991866772,-822.47,0.0003589,9]
[388050036,1758991866781,-162.86902007,0.0003589,9]
[388050037,1758991866791,-480.0,0.0003589,9]
[388050038,1758991866801,-480.0,0.0003589,9]
[388050039,1758991866810,-480.0,0.0003589,9]
[388050040,1758991866819,-2490.15,0.0003589,9]
[388050041,1758991866829,-480.0,0.0003589,9]
[388050042,1758991866839,-480.0,0.0003589,9]
[388050043,1758991866848,-480.0,0.0003589,9]
[388050044,1758991866858,-480.0,0.0003589,9]
[388050045,1758991866867,-480.0,0.0003589,9]
[388050046,1758991866876,-480.0,0.0003589,9]
[388050047,1758991866886,-480.0,0.0003589,9]
[388050048,1758991866895,-480.0,0.0003589,9]
[388050049,1758991866905,-480.0,0.0003589,9]
[388050050,1758991866914,-480.0,0.0003589,9]
[388050051,1758991866924,-480.0,0.0003589,9]
[388050052,1758991866934,-480.0,0.0003589,9]
[388050053,1758991866943,-482.75134665,0.0003589,9]
[388050054,1758991866953,-480.0,0.0003589,9]
[388050055,1758991866962,-480.0,0.0003589,9]
[388050056,1758991866974,-480.0,0.0003589,9]
[388050057,1758991866985,-480.0,0.0003589,9]
[388050058,1758991866995,-480.0,0.0003589,9]
[388050059,1758991867005,-480.0,0.0003589,9]
[388050060,1758991867014,-480.0,0.0003589,9]
[388050061,1758991867023,-480.0,0.0003589,9]
[388050062,1758991867033,-480.0,0.0003589,9]
[388050063,1758991867043,-480.0,0.0003589,9]
[388050064,1758991867052,-388.59554195,0.0003589,9]
[388050065,1758991867512,-91.40445805,0.0003589,9]
[388050066,1758991867521,-480.0,0.0003589,9]
[388050067,1758991867530,-1027.0,0.0003589,9]
[388050068,1758991867540,-480.0,0.0003589,9]
[388050069,1758991867549,-480.0,0.0003589,9]
[388050070,1758991867558,-480.0,0.0003589,9]
[388050071,1758991867566,-155.40308475,0.0003589,9]
[388050072,1758991867575,-905.57,0.0003589,9]
[388050073,1758991867583,-668.1,0.0003589,9]
[388050074,1758991867593,-480.0,0.0003589,9]
[388050075,1758991867602,-480.0,0.0003589,9]
[388050076,1758991867611,-480.0,0.0003589,9]
[388050077,1758991867620,-1071.38,0.0003589,9]
[388050078,1758991867629,-480.0,0.0003589,9]
[388050079,1758991867638,-480.0,0.0003589,9]
[388050080,1758991867647,-480.0,0.0003589,9]
[388050081,1758991867656,-480.0,0.0003589,9]
[388050082,1758991867665,-480.0,0.0003589,9]
[388050083,1758991867674,-480.0,0.0003589,9]
[388050084,1758991867683,-315.47956739,0.0003589,9]
[388050085,1758991867692,-480.0,0.0003589,9]
[388050086,1758991867701,-1698.75,0.0003589,9]
[388050087,1758991867710,-480.0,0.0003589,9]
[388050088,1758991867718,-282.98133905,0.0003589,9]
[388050089,1758991867727,-480.0,0.0003589,9]
[388050090,1758991867736,-267.7361529,0.0003589,9]
[388050091,1758991867744,-480.0,0.0003589,9]
[388050092,1758991867753,-480.0,0.0003589,9]
[388050093,1758991867761,-883.82,0.0003589,9]
[388050094,1758991867771,-1000.0,0.0003589,9]
[388050095,1758991867780,-480.0,0.0003589,9]
[388050096,1758991867789,-480.0,0.0003589,9]
[388050097,1758991867798,-480.0,0.0003589,9]
[388050098,1758991867807,-480.0,0.0003589,9]
[388050099,1758991867828,-512.47,0.0003589,9]
[388050100,1758991867845,-480.0,0.0003589,9]
[388050101,1758991867864,-2386.69,0.0003589,9]
[388050102,1758991867884,-1481.2,0.0003589,9]
[388050103,1758991867902,-480.0,0.0003589,9]
[388050104,1758991867919,-480.0,0.0003589,9]
[388050105,1758991867934,-1122.03,0.0003589,9]
[388050106,1758991867950,-554.13916733,0.0003589,9]
[388050107,1758991867970,-2035.75,0.0003589,9]
[388050108,1758991867990,-480.0,0.0003589,9]
[388050109,1758991868002,-798.94,0.0003589,9]
[388050110,1758991868021,-1685.12,0.0003589,9]
[388050111,1758991868036,-480.0,0.0003589,9]
[388050112,1758991868055,-732.53,0.0003589,9]
[388050113,1758991868068,-480.0,0.0003589,9]
[388050114,1758991868087,-480.0,0.0003589,9]
[388050115,1758991868102,-206.09986336,0.0003589,9]
[388050116,1758991868117,-480.0,0.0003589,9]
[388050117,1758991868132,-860.0,0.0003589,9]
[388050118,1758991868148,-866.02,0.0003589,9]
[388050119,1758991868163,-480.0,0.0003589,9]
[388050120,1758991868178,-241.87782608,0.0003589,2]
[388050121,1758991868195,-808.41,0.0003589,9]
[388050122,1758991868210,-577.44,0.0003589,9]
[388050123,1758991868225,-480.0,0.0003589,9]
[388050124,1758991868241,-480.0,0.0003589,9]
[388050125,1758991868256,-480.0,0.0003589,9]
[388050126,1758991868270,-480.0,0.0003589,9]
[388050127,1758991868285,-509.01,0.0003589,9]
[388050128,1758991868300,-480.0,0.0003589,9]
[388050129,1758991868315,-480.0,0.0003589,9]
[388050130,1758991868332,-480.0,0.0003589,9]
[388050131,1758991868347,-703.43,0.0003589,9]
[388050132,1758991868362,-480.0,0.0003589,9]
[388050133,1758991868377,-480.0,0.0003589,9]
[388050134,1758991868393,-659.68,0.0003589,9]
[388050135,1758991868408,-480.0,0.0003589,9]
[388050136,1758991868424,-480.0,0.0003589,9]
[388050137,1758991868439,-480.0,0.0003589,9]
[388050138,1758991868455,-480.0,0.0003589,9]
[388050139,1758991868471,-480.0,0.0003589,9]
[388050140,1758991868487,-480.0,0.0003589,9]
[388050141,1758991868502,-480.0,0.0003589,9]
[388050142,1758991868518,-480.0,0.0003589,9]
[388050143,1758991868533,-480.0,0.0003589,9]
[388050144,1758991868548,-480.0,0.0003589,7]
[388050145,1758991868564,-520.0,0.0003589,3]
[388050146,1758991868582,-480.0,0.0003589,9]
[388050147,1758991868596,-480.0,0.0003589,9]
[388050148,1758991868611,-480.0,0.0003589,9]
[388050149,1758991868630,-480.0,0.0003589,9]
[388050150,1758991868646,-480.0,0.0003589,9]
[388050151,1758991868664,-480.0,0.0003589,9]
[388050152,1758991868680,-480.0,0.0003589,9]
[388050153,1758991868696,-480.0,0.0003589,9]
[388050154,1758991868706,-480.0,0.0003589,9]
[388050155,1758991868716,-480.0,0.0003589,9]
[388050156,1758991868726,-948.42,0.0003589,9]
[388050157,1758991868735,-480.0,0.0003589,9]
[388050158,1758991868745,-480.0,0.0003589,9]
[388050159,1758991868754,-480.0,0.0003589,9]
[388050160,1758991868763,-520.6142878,0.0003589,9]
[388050161,1758991868773,-480.0,0.0003589,9]
[388050162,1758991868783,-480.0,0.0003589,9]
[388050163,1758991868793,-682.22,0.0003589,9]
[388050164,1758991868803,-480.0,0.0003589,9]
[388050165,1758991868813,-480.0,0.0003589,9]
[388050166,1758991868823,-480.0,0.0003589,9]
[388050167,1758991868832,-480.0,0.0003589,9]
[388050168,1758991868842,-480.0,0.0003589,9]
[388050169,1758991868852,-480.0,0.0003589,9]
[388050170,1758991868861,-480.0,0.0003589,9]
[388050171,1758991868871,-480.0,0.0003589,9]
[388050172,1758991868881,-480.0,0.0003589,9]
[388050173,1758991868891,-480.0,0.0003589,9]
[388050174,1758991868900,-480.0,0.0003589,9]
[388050175,1758991868911,-564.83,0.0003589,9]
[388050176,1758991868922,-640.79,0.0003589,9]
[388050177,1758991868931,-641.47,0.0003589,9]
[388050178,1758991869237,-480.0,0.0003589,9]
[388050179,1758991869265,-311.84,0.0003589,9]
[388050180,1758991869285,-480.0,0.0003589,9]
[388050181,1758991869297,-480.0,0.0003589,9]
[388050182,1758991869306,-764.09,0.0003589,9]
[388050183,1758991869316,-480.0,0.0003589,9]
[388050184,1758991869326,-480.0,0.0003589,9]
[388050185,1758991869335,-295.96066006,0.0003589,9]
[388050186,1758991869345,-480.0,0.0003589,9]
[388050187,1758991869355,-958.46,0.0003589,9]
[388050188,1758991869364,-480.0,0.0003589,9]
[388050189,1758991869373,-480.0,0.0003589,9]
[388050190,1758991869383,-817.13,0.0003589,9]
[388050191,1758991869392,-480.0,0.0003589,9]
[388050192,1758991869402,-480.0,0.0003589,9]
[388050193,1758991869411,-480.0,0.0003589,9]
[388050194,1758991869420,-480.0,0.0003589,9]
[388050195,1758991869430,-480.0,0.0003589,9]
[388050196,1758991869440,-480.0,0.0003589,9]
[388050197,1758991869450,-942.86,0.0003589,9]
[388050198,1758991869459,-480.0,0.0003589,9]
[388050199,1758991869469,-480.0,0.0003589,9]
[388050200,1758991869478,-854.67,0.0003589,9]
[388050201,1758991869488,-480.0,0.0003589,9]
[388050202,1758991869497,-499.06,0.0003589,9]
[388050203,1758991869507,-1708.29,0.0003589,9]
[388050204,1758991869516,-480.0,0.0003589,9]
[388050205,1758991869525,-480.0,0.0003589,9]
[388050206,1758991869535,-480.0,0.0003589,9]